bitfinex/quotes_BTCUSD_20241206
["timestamp","ask_amount","ask_price","bid_price","bid_amount"]
[1733499667945,1.82662798,99231.0,99230.0,0.0017286]
[1733499668348,1.83362798,99231.0,99230.0,0.0017286]
[1733499668550,0.33362798,99231.0,99230.0,0.0017286]
[1733499668755,0.32662798,99231.0,99230.0,0.0017286]
[1733499669112,0.33562798,99231.0,99230.0,0.0017286]
[1733499669313,0.33362798,99231.0,99230.0,0.0017286]
[1733499669532,0.34510726,99231.0,99230.0,0.0017286]
[1733499669737,0.02747928,99231.0,99230.0,0.0247286]
[1733499669943,0.01847928,99231.0,99230.0,0.0247286]
[1733499670150,0.01847928,99231.0,99230.0,0.03125215]
[1733499670356,0.01847928,99231.0,99230.0,0.0247286]
[1733499670556,0.22002828,99231.0,99230.0,0.0247286]
[1733499670782,0.32505982,99231.0,99230.0,0.0247286]
[1733499671193,0.41320598,99231.0,99230.0,0.0017286]
[1733499671404,0.41920598,99231.0,99230.0,0.0017286]
[1733499672032,0.32705982,99231.0,99230.0,0.0017286]
[1733499672286,0.33205982,99231.0,99230.0,0.0017286]
[1733499672703,0.11903154,99231.0,99230.0,0.0247286]
[1733499672938,0.11403154,99231.0,99230.0,0.0247286]
[1733499673128,0.018,99231.0,99230.0,0.1057286]
[1733499673306,0.1748638,99233.0,99230.0,0.1057286]
[1733499673505,0.0113513,99240.0,99231.0,0.023]
[1733499673732,0.201529,99242.0,99230.0,0.08927976]
[1733499673733,0.201547,99232.0,99230.0,0.08927976]
[1733499673951,0.10503154,99231.0,99230.0,0.0827286]
[1733499674170,0.10503154,99231.0,99230.0,0.0017286]
[1733499675500,0.11403154,99231.0,99230.0,0.0017286]
[1733499675733,0.10803154,99231.0,99230.0,0.0247286]
[1733499675960,0.10503154,99231.0,99230.0,0.0247286]
[1733499676194,0.25,99249.0,99231.0,0.023]
[1733499676422,0.1748638,99238.0,99230.0,0.0017286]
[1733499676659,0.210549,99231.0,99230.0,0.0247286]
[1733499676884,0.210549,99231.0,99230.0,0.0017286]
[1733499676885,0.30658054,99231.0,99230.0,0.0017286]
[1733499677101,0.4310707,99231.0,99230.0,0.0017286]
[1733499677316,0.4810707,99231.0,99230.0,0.0017286]
[1733499677784,0.49298799,99231.0,99230.0,0.0017286]
[1733499678229,0.51475589,99231.0,99230.0,0.0017286]
[1733499678455,0.50775589,99231.0,99230.0,0.0017286]
[1733499678669,0.50475589,99231.0,99230.0,0.0017286]
[1733499679086,0.51275589,99231.0,99230.0,0.0017286]
[1733499679310,2.02175589,99231.0,99230.0,0.0017286]
[1733499679537,2.01375589,99231.0,99230.0,0.0017286]
[1733499679745,2.00475589,99231.0,99230.0,0.0017286]
[1733499679951,2.01375589,99231.0,99230.0,0.0017286]
[1733499680157,1.93926573,99231.0,99230.0,0.0017286]
[1733499681045,1.93925343,99231.0,99230.0,0.0017286]
[1733499681268,1.93825343,99231.0,99230.0,0.0017286]
[1733499681483,1.94725343,99231.0,99230.0,0.0017286]
[1733499681702,2.04414835,99231.0,99230.0,0.0017286]
[1733499682151,2.05114835,99231.0,99230.0,0.0017286]
[1733499682796,0.55157,99221.0,99220.0,0.0017286]
[1733499682998,0.66850653,99221.0,99220.0,0.0017286]
[1733499683169,0.8783921,99221.0,99220.0,0.0017286]
[1733499683446,0.8783921,99221.0,99220.0,0.1253286]
[1733499683447,0.29180033,99221.0,99220.0,0.1253286]
[1733499683628,0.0277679,99231.0,99220.0,0.13217093]
[1733499683629,0.1748638,99225.0,99220.0,0.13217093]
[1733499683835,0.10503154,99224.0,99220.0,0.13217093]
[1733499684007,0.10503154,99224.0,99220.0,0.1253286]
[1733499684210,0.201566,99223.0,99220.0,0.1253286]
[1733499684394,0.20157,99221.0,99220.0,0.1253286]
[1733499684606,1.80660154,99221.0,99220.0,0.1253286]
[1733499684810,1.81850653,99221.0,99220.0,0.1253286]
[1733499685217,0.31850653,99221.0,99220.0,0.0017286]
[1733499685454,0.30660154,99221.0,99220.0,0.0017286]
[1733499685651,0.30960154,99221.0,99220.0,0.0017286]
[1733499685859,1.94600016,99221.0,99220.0,0.0017286]
[1733499686033,2.14600016,99221.0,99220.0,0.0017286]
[1733499686247,2.07150653,99221.0,99220.0,0.00164818]
[1733499686880,2.06850653,99221.0,99220.0,0.00164818]
[1733499687311,1.62193653,99221.0,99220.0,0.00164818]
[1733499687542,0.12193653,99221.0,99220.0,0.00164818]
[1733499687788,0.11693653,99221.0,99220.0,0.00164818]
[1733499688029,0.13293653,99221.0,99220.0,0.00164818]
[1733499688258,0.2122141,99221.0,99220.0,0.00164818]
[1733499688733,0.1962141,99221.0,99220.0,0.00164818]
[1733499688953,0.2052141,99221.0,99220.0,0.00164818]
[1733499689170,0.11993653,99221.0,99220.0,0.00164818]
[1733499689380,1.61993653,99221.0,99220.0,0.00164818]
[1733499689616,1.62793653,99221.0,99220.0,0.00164818]
[1733499690089,1.62493653,99221.0,99220.0,0.00164818]
[1733499690567,1.62893653,99221.0,99220.0,0.00164818]
[1733499690864,1.72583145,99221.0,99220.0,0.00164818]
[1733499691043,1.72983145,99221.0,99220.0,0.00164818]
[1733499691292,1.61693653,99221.0,99220.0,0.00164818]
[1733499691739,1.62593653,99221.0,99220.0,0.08344818]
[1733499692472,1.61993653,99221.0,99220.0,0.08344818]
[1733499692695,1.62593653,99221.0,99220.0,0.08344818]
[1733499692917,1.62593653,99221.0,99220.0,0.00164818]
[1733499692918,1.73083145,99221.0,99220.0,0.00164818]
[1733499693151,1.62593653,99221.0,99220.0,0.00164818]
[1733499693378,1.62293653,99221.0,99220.0,0.00164818]
[1733499693612,0.45159,99211.0,99210.0,0.0017328]
[1733499693859,0.56852653,99211.0,99210.0,0.0017328]
[1733499695300,0.57252653,99211.0,99210.0,0.0017328]
[1733499695528,0.58152653,99211.0,99210.0,0.0017328]
[1733499695755,0.12993653,99211.0,99210.0,0.0017328]
[1733499696017,0.12993653,99211.0,99210.0,0.0792328]
[1733499696254,0.12993653,99211.0,99210.0,0.08622508]
[1733499696492,0.12993653,99211.0,99210.0,0.06503308]
[1733499696716,0.12593653,99211.0,99210.0,0.0580408]
[1733499696936,0.12993653,99211.0,99210.0,0.0580408]
[1733499697418,0.11403154,99211.0,99210.0,0.06505975]
[1733499697637,0.11403154,99211.0,99210.0,0.08805975]
[1733499697638,0.009,99211.0,99210.0,0.08805975]
[1733499697856,0.013,99211.0,99210.0,0.08805975]
[1733499698305,0.013,99211.0,99210.0,0.06505975]
[1733499698855,0.11803154,99211.0,99210.0,0.06505975]
[1733499699103,0.403184,99210.0,99200.0,0.0473]
[1733499699318,0.201596,99208.0,99200.0,0.0473]
[1733499699578,0.201596,99208.0,99197.0,0.0789]
[1733499699579,0.13626654,99207.0,99197.0,0.0789]
[1733499699848,0.13626654,99207.0,99180.0,0.0017338]
[1733499699849,1.68626654,99207.0,99188.0,0.0477]
[1733499700315,1.73626654,99207.0,99188.0,0.0477]
[1733499700553,1.84116146,99207.0,99188.0,0.0477]
[1733499700996,1.69426654,99207.0,99200.0,0.0017338]
[1733499701259,1.64026654,99207.0,99200.0,0.0017338]
[1733499701507,0.16125659,99207.0,99200.0,0.0017338]
[1733499701716,0.14825659,99207.0,99200.0,0.0017338]
[1733499702154,0.15725659,99207.0,99200.0,0.0017338]
[1733499703089,0.13402159,99207.0,99200.0,0.0017338]
[1733499703297,0.13402159,99207.0,99206.0,0.0906409]
[1733499703527,0.12602159,99207.0,99206.0,0.0906409]
[1733499703758,0.11403154,99207.0,99206.0,0.0906409]
[1733499703996,0.12602951,99207.0,99206.0,0.0906409]
[1733499704204,0.23092443,99207.0,99206.0,0.0906409]
[1733499704424,0.22892443,99207.0,99206.0,0.0906409]
[1733499704852,0.12402951,99207.0,99206.0,0.0906409]
[1733499705061,0.11702951,99207.0,99206.0,0.0906409]
[1733499705550,0.12402951,99207.0,99206.0,0.0906409]
[1733499705751,0.11702951,99207.0,99206.0,0.0906409]
[1733499706420,0.12102951,99207.0,99206.0,0.0906409]
[1733499706841,0.11702951,99207.0,99206.0,0.0906409]
[1733499707027,0.11003154,99207.0,99206.0,0.0906409]
[1733499707268,0.13104079,99207.0,99206.0,0.0906409]
[1733499707476,0.11704079,99207.0,99206.0,0.0906409]
[1733499707941,0.02500925,99207.0,99206.0,0.1594409]
[1733499708153,0.01600925,99207.0,99206.0,0.1594409]
[1733499708572,0.02300925,99207.0,99206.0,0.1664689]
[1733499710325,0.12804079,99207.0,99206.0,0.1434689]
[1733499710535,0.12404079,99207.0,99206.0,0.1364409]
[1733499710758,0.12808079,99207.0,99206.0,0.1364409]
[1733499711413,0.02304925,99207.0,99206.0,0.1594409]
[1733499711662,0.02304925,99207.0,99206.0,0.3610409]
[1733499711889,0.02304925,99207.0,99206.0,0.36806194]
[1733499712972,0.01104,99207.0,99206.0,0.36806194]
[1733499713183,0.02304925,99207.0,99206.0,0.36806194]
[1733499713390,0.01104,99207.0,99206.0,0.36806194]
[1733499714036,0.00404,99207.0,99206.0,0.36806194]
[1733499714473,0.00504,99207.0,99206.0,0.36806194]
[1733499714696,4e-05,99207.0,99206.0,0.36806194]
[1733499714916,0.00404,99207.0,99206.0,0.36806194]
[1733499715604,4e-05,99207.0,99206.0,0.36806194]
[1733499717752,4e-05,99207.0,99206.0,0.16646194]
[1733499720998,4e-05,99207.0,99206.0,0.14346194]
[1733499721430,0.10507154,99207.0,99206.0,0.14346194]
[1733499721728,0.19362847,99207.0,99206.0,0.14346194]
[1733499721929,0.10507154,99207.0,99206.0,0.02186194]
[1733499722143,1.60507154,99207.0,99206.0,0.0148409]
[1733499722556,1.63145653,99207.0,99206.0,0.0148409]
[1733499722766,0.13145653,99207.0,99206.0,0.0148409]
[1733499723004,0.11945723,99207.0,99206.0,0.0148409]
[1733499723418,0.01442569,99207.0,99206.0,0.0148409]
[1733499723642,0.403201,99206.0,99200.0,0.0017338]
[1733499723875,0.12145723,99207.0,99200.0,0.0017338]
[1733499723876,0.25,99202.0,99200.0,0.0017338]
[1733499724139,0.31864084,99201.0,99200.0,0.0017338]
[1733499724801,0.38460915,99201.0,99200.0,0.0017338]
[1733499725011,0.33460915,99201.0,99200.0,0.0017338]
[1733499725237,0.35451732,99201.0,99200.0,0.0017338]
[1733499725477,0.36351732,99201.0,99200.0,0.0017338]
[1733499725703,0.35509139,99201.0,99200.0,0.0017338]
[1733499725916,0.33518322,99201.0,99200.0,0.0017338]
[1733499726132,0.31921491,99201.0,99200.0,0.0017338]
[1733499726808,0.01257337,99201.0,99200.0,0.0017338]
[1733499727040,0.01757407,99201.0,99200.0,0.01458718]
[1733499727264,0.01757407,99201.0,99200.0,0.03758718]
[1733499727479,0.00057407,99201.0,99200.0,0.03758718]
[1733499727688,0.01357407,99201.0,99200.0,0.03758718]
[1733499727909,0.00457407,99201.0,99200.0,0.11728718]
[1733499728154,0.00457407,99201.0,99200.0,0.1044338]
[1733499728371,0.00357407,99201.0,99200.0,0.1044338]
[1733499729029,0.00057407,99201.0,99200.0,0.1044338]
[1733499729771,0.00157407,99201.0,99200.0,0.0814338]
[1733499730237,0.00057407,99201.0,99200.0,0.0814338]
[1733499730464,0.00157407,99201.0,99200.0,0.0814338]
[1733499730941,0.00457407,99201.0,99200.0,0.0814338]
[1733499731159,0.00357407,99201.0,99200.0,0.0017338]
[1733499731369,0.11971779,99201.0,99200.0,0.0017338]
[1733499731581,0.01653714,99201.0,99200.0,0.0017338]
[1733499731801,0.00157407,99201.0,99200.0,0.0017338]
[1733499732011,0.00957407,99201.0,99200.0,0.0017338]
[1733499732657,0.02154549,99201.0,99200.0,0.0017338]
[1733499732861,0.00157407,99201.0,99200.0,0.0846338]
[1733499733317,0.00157407,99201.0,99200.0,0.09167434]
[1733499733318,0.00057407,99201.0,99200.0,0.09167434]
[1733499733741,0.00757407,99201.0,99200.0,0.09167434]
[1733499733956,0.00057407,99201.0,99200.0,0.09167434]
[1733499734136,0.00457407,99201.0,99200.0,0.09167434]
[1733499734365,0.01157407,99201.0,99200.0,0.09167434]
[1733499734626,0.00457407,99201.0,99200.0,0.09167434]
[1733499734835,0.00057407,99201.0,99200.0,0.09167434]
[1733499735041,0.00993782,99201.0,99200.0,0.09167434]
[1733499735255,0.00993782,99201.0,99200.0,0.14097434]
[1733499735256,0.01293782,99201.0,99200.0,0.14097434]
[1733499735460,0.01057407,99201.0,99200.0,0.14097434]
[1733499736547,0.00757407,99201.0,99200.0,0.14097434]
[1733499736761,0.00357407,99201.0,99200.0,0.14097434]
[1733499737224,0.01057407,99201.0,99200.0,0.14097434]
[1733499737431,0.00057407,99201.0,99200.0,0.14097434]
[1733499737849,0.00057407,99201.0,99200.0,0.14297434]
[1733499738719,0.00057407,99201.0,99200.0,0.16698229]
[1733499738930,0.00057407,99201.0,99200.0,0.16698224]
[1733499739799,0.01199649,99228.0,99200.0,0.16698224]
[1733499739800,0.01199649,99231.0,99208.0,0.1493]
[1733499740012,0.01199649,99241.0,99219.0,0.224574]
[1733499740221,0.22506808,99256.0,99219.0,0.224574]
[1733499740222,0.01500146,99243.0,99224.0,0.201563]
[1733499740440,0.01500146,99243.0,99224.0,0.403126]
[1733499740646,0.01500146,99243.0,99225.0,0.00695826]
[1733499740853,0.01500146,99243.0,99226.0,0.20156]
[1733499741105,0.00937123,99240.0,99227.0,0.0482]
[1733499741327,0.0088669,99230.0,99229.0,0.023]
[1733499741549,0.00937123,99240.0,99239.0,0.224533]
[1733499741756,0.00937123,99240.0,99239.0,0.50467214]
[1733499741974,0.01499727,99255.0,99242.0,0.023]
[1733499742185,0.13508033,99272.0,99242.0,0.023]
[1733499742186,0.00937123,99266.0,99249.0,0.201513]
[1733499742466,0.00937123,99265.0,99249.0,0.301413]
[1733499742684,0.00937123,99267.0,99249.0,0.3083238]
[1733499742903,0.00937123,99266.0,99249.0,0.34998414]
[1733499743122,0.0113597,99268.0,99249.0,0.34998414]
[1733499743123,0.00937123,99267.0,99249.0,0.35015683]
[1733499743338,0.0113597,99268.0,99249.0,0.08398349]
[1733499744060,0.0113597,99268.0,99249.0,0.08698349]
[1733499744287,0.0113597,99268.0,99249.0,0.08798349]
[1733499744516,0.0113597,99268.0,99249.0,0.08498349]
[1733499744721,0.0113597,99268.0,99249.0,0.08598349]
[1733499745156,0.0113597,99268.0,99249.0,0.08698349]
[1733499746251,0.0113597,99268.0,99249.0,0.11583364]
[1733499746468,0.0113597,99268.0,99249.0,0.13684112]
[1733499746676,0.0113597,99268.0,99249.0,0.10899097]
[1733499746881,0.0113597,99268.0,99249.0,0.10998349]
[1733499747084,0.0113597,99268.0,99249.0,0.1089909]
[1733499747290,0.0113597,99268.0,99249.0,0.1079909]
[1733499747518,0.0113597,99268.0,99249.0,0.1129909]
[1733499747737,0.0113597,99268.0,99249.0,0.11198349]
[1733499749128,0.0113597,99268.0,99249.0,0.18873858]
[1733499750534,0.0113597,99268.0,99249.0,0.11198349]
[1733499751460,0.0113597,99268.0,99249.0,0.1129909]
[1733499753566,0.0113597,99268.0,99249.0,0.11198349]
[1733499754237,0.0113597,99268.0,99249.0,0.1129909]
[1733499754882,0.01673984,99282.0,99249.0,0.31592244]
[1733499754883,0.00930072,99282.0,99249.0,0.31592244]
[1733499755091,0.01116747,99282.0,99249.0,0.36491503]
[1733499755529,0.01116747,99282.0,99249.0,0.37614801]
[1733499756150,0.01116747,99282.0,99249.0,0.37114801]
[1733499756352,0.01116747,99282.0,99249.0,0.37214801]
[1733499756587,0.01116747,99282.0,99249.0,0.37614801]
[1733499757507,0.01674039,99288.0,99284.0,0.20144]
[1733499757813,0.0008674,99290.0,99287.0,0.023]
[1733499758021,0.0008674,99290.0,99289.0,0.023]
[1733499758445,0.0008674,99290.0,99289.0,0.0326627]
[1733499758664,0.0008674,99290.0,99289.0,0.1085627]
[1733499758871,0.00929766,99309.0,99299.0,0.350311]
[1733499759079,0.00929766,99308.0,99299.0,0.45534254]
[1733499759286,0.01487903,99320.0,99299.0,0.46399238]
[1733499759501,0.01487903,99320.0,99299.0,0.30896084]
[1733499759714,0.00929002,99309.0,99299.0,0.30896084]
[1733499759924,0.01487903,99320.0,99299.0,0.30896084]
[1733499760129,0.00928995,99309.0,99299.0,0.31396084]
[1733499760393,0.21624903,99320.0,99299.0,0.31696084]
[1733499760394,0.00928995,99308.0,99299.0,0.31696084]
[1733499760603,0.00928995,99307.0,99299.0,0.31196084]
[1733499760822,0.00928995,99306.0,99299.0,0.08554984]
[1733499761042,0.01487903,99317.0,99299.0,0.08554984]
[1733499761263,0.01487903,99318.0,99299.0,0.08754984]
[1733499761499,0.01487903,99317.0,99299.0,0.08754984]
[1733499761733,0.00928269,99309.0,99299.0,0.08754984]
[1733499761948,0.00928269,99308.0,99299.0,0.08754984]
[1733499762159,0.00928269,99308.0,99299.0,0.08578184]
[1733499762370,0.00928269,99308.0,99299.0,0.08278184]
[1733499762580,0.00928269,99308.0,99299.0,0.08778184]
[1733499762791,0.00928266,99309.0,99299.0,0.08778184]
[1733499763011,0.00928266,99309.0,99299.0,0.08478184]
[1733499763225,0.00928266,99309.0,99299.0,0.11278875]
[1733499763439,0.00928266,99309.0,99299.0,0.17435162]
[1733499763660,0.00928266,99309.0,99299.0,0.32938316]
[1733499763874,0.00928266,99309.0,99299.0,0.32837625]
[1733499764315,0.00928266,99309.0,99299.0,0.42817625]
[1733499764536,0.00928266,99309.0,99299.0,0.4393563]
[1733499765654,0.0092869,99327.0,99299.0,0.4283563]
[1733499765857,0.02413921,99326.0,99299.0,0.4283563]
[1733499766067,0.0092869,99325.0,99299.0,0.4283563]
[1733499766287,0.02413921,99324.0,99299.0,0.4283563]
[1733499766534,0.01485231,99323.0,99299.0,0.4283563]
[1733499766765,0.01485231,99322.0,99299.0,0.4283563]
[1733499766968,0.01485231,99321.0,99299.0,0.4283563]
[1733499767387,0.01485231,99320.0,99299.0,0.4283563]
[1733499767608,0.01101973,99331.0,99299.0,0.4283563]
[1733499767609,0.01485231,99319.0,99299.0,0.4283563]
[1733499767823,0.01485231,99318.0,99299.0,0.4283563]
[1733499768034,0.02545516,99337.0,99299.0,0.4283563]
[1733499768241,0.01136858,99338.0,99299.0,0.4283563]
[1733499768445,0.01136858,99338.0,99299.0,0.4581491]
[1733499768446,0.01486643,99329.0,99299.0,0.4581491]
[1733499768650,0.02685444,99338.0,99299.0,0.4581491]
[1733499768651,0.01486643,99328.0,99299.0,0.4581491]
[1733499768866,0.01486643,99327.0,99299.0,0.4581491]
[1733499769082,0.01486643,99326.0,99299.0,0.4541491]
[1733499769285,0.01486643,99325.0,99299.0,0.4611491]
[1733499769526,0.01136858,99338.0,99299.0,0.4611491]
[1733499769527,0.01486643,99324.0,99299.0,0.4611491]
[1733499769767,0.00104,99300.0,99299.0,0.4661491]
[1733499769980,0.00104,99300.0,99299.0,0.4363563]
[1733499770187,0.00104,99300.0,99299.0,0.13558184]
[1733499770610,0.01034181,99300.0,99299.0,0.13558184]
[1733499771266,0.01034181,99300.0,99299.0,0.02264984]
[1733499771479,0.02608926,99300.0,99299.0,0.02264984]
[1733499771726,0.20143,99290.0,99289.0,0.00017269]
[1733499772168,0.22561246,99290.0,99289.0,0.00017269]
[1733499773077,0.22661246,99290.0,99289.0,0.00017269]
[1733499773283,0.21073181,99290.0,99289.0,0.00017269]
[1733499773515,0.21273181,99290.0,99289.0,0.00017269]
[1733499773726,0.21373181,99290.0,99289.0,0.00017269]
[1733499774155,0.01230181,99290.0,99289.0,0.00017269]
[1733499774642,0.003,99290.0,99289.0,0.00017269]
[1733499775063,0.0123137,99290.0,99289.0,0.00017269]
[1733499775267,0.11434524,99290.0,99289.0,0.00017269]
[1733499775701,0.11934524,99290.0,99289.0,0.00017269]
[1733499775910,0.1306516,99290.0,99289.0,0.00017269]
[1733499776120,0.20900146,99290.0,99289.0,0.00017269]
[1733499776331,0.25720146,99290.0,99289.0,0.00017269]
[1733499776542,1.75720146,99290.0,99289.0,0.00017269]
[1733499777011,1.76847521,99290.0,99289.0,0.00017269]
[1733499777224,1.77747521,99290.0,99289.0,0.00117269]
[1733499777655,1.7974897,99290.0,99289.0,0.00117269]
[1733499777888,1.7974878,99290.0,99289.0,0.00117269]
[1733499778599,1.7944878,99290.0,99289.0,0.00017269]
[1733499778824,1.7944878,99290.0,99289.0,0.00117269]
[1733499778825,1.8034878,99290.0,99289.0,0.00117269]
[1733499779019,1.71913794,99290.0,99289.0,0.00117269]
[1733499779286,1.71613794,99290.0,99289.0,0.00017269]
[1733499779561,1.72513794,99290.0,99289.0,0.00117269]
[1733499779738,1.69386419,99290.0,99289.0,0.00017269]
[1733499780270,1.70886419,99290.0,99289.0,0.00117269]
[1733499780499,1.6406497,99290.0,99289.0,0.00117269]
[1733499780788,0.1406497,99290.0,99289.0,0.00117269]
[1733499781551,0.1346497,99290.0,99289.0,0.00117269]
[1733499781783,0.1316497,99290.0,99289.0,0.00017269]
[1733499782011,0.1406497,99290.0,99289.0,0.00117269]
[1733499784410,1.6406497,99290.0,99289.0,0.00117269]
[1733499786046,1.71928652,99290.0,99289.0,0.00117269]
[1733499786517,1.6406497,99290.0,99289.0,0.00117269]
[1733499786757,1.64066209,99290.0,99289.0,0.00117269]
[1733499787234,0.14066209,99290.0,99289.0,0.00117269]
[1733499787556,0.02432419,99290.0,99289.0,0.00117269]
[1733499787775,0.02432419,99290.0,99289.0,0.07817269]
[1733499787997,0.02432419,99290.0,99289.0,0.08546704]
[1733499788688,0.01832419,99290.0,99289.0,0.08546704]
[1733499788917,0.02432419,99290.0,99289.0,0.08546704]
[1733499789373,0.00932419,99290.0,99289.0,0.08446704]
[1733499789627,0.01832419,99290.0,99289.0,0.08546704]
[1733499789895,0.01532419,99290.0,99289.0,0.08446704]
[1733499790838,0.01532419,99290.0,99289.0,0.13782184]
[1733499791065,0.00932419,99290.0,99289.0,0.13782184]
[1733499791273,0.01832419,99290.0,99289.0,0.08546704]
[1733499791477,0.01936419,99290.0,99289.0,0.08546704]
[1733499791695,0.01036419,99290.0,99289.0,0.08446704]
[1733499792332,0.00104,99290.0,99289.0,0.08446704]
[1733499792447,0.00204,99290.0,99289.0,0.08446704]
[1733499793731,0.00204,99290.0,99289.0,0.08547409]
[1733499794156,0.00104,99290.0,99289.0,0.08547409]
[1733499794357,0.00104,99290.0,99289.0,0.08647409]
[1733499794563,0.0009068,99300.0,99289.0,0.08647409]
[1733499794564,0.0009068,99300.0,99297.0,0.023]
[1733499794776,0.0009068,99300.0,99298.0,0.00100687]
[1733499795020,0.0009068,99300.0,99299.0,0.02400688]
[1733499795441,0.0009068,99300.0,99299.0,0.03161468]
[1733499795843,0.0009068,99300.0,99299.0,0.07991468]
[1733499796068,0.0009068,99300.0,99299.0,0.10078331]
[1733499796677,0.0009068,99300.0,99299.0,0.10178331]
[1733499797665,0.0009068,99300.0,99299.0,0.17678331]
[1733499799547,0.0009068,99300.0,99299.0,0.15891468]
[1733499806672,0.0009068,99300.0,99299.0,0.15885809]
[1733499809556,0.0009068,99300.0,99299.0,0.1579078]
[1733499809985,0.0009068,99300.0,99299.0,0.15891468]
[1733499811191,0.0009068,99300.0,99299.0,0.0116078]
[1733499811635,0.0102406,99300.0,99299.0,0.00910078]
[1733499811861,0.156577,99300.0,99299.0,0.004]
[1733499812069,0.21467772,99300.0,99299.0,0.004]
[1733499812292,0.20375782,99300.0,99299.0,0.003]
[1733499812504,0.201428,99291.0,99290.0,0.0017324]
[1733499812723,0.3158078,99291.0,99290.0,0.0017324]
[1733499813401,1.8158078,99291.0,99290.0,0.0017324]
[1733499813620,1.89253098,99291.0,99290.0,0.0017324]
[1733499814453,1.90153098,99291.0,99290.0,0.0027324]
[1733499814658,1.8248078,99291.0,99290.0,0.0027324]
[1733499815112,0.01834826,99291.0,99290.0,0.0027324]
[1733499815313,0.02434826,99291.0,99290.0,0.0027324]
[1733499816560,0.02435183,99291.0,99290.0,0.0027324]
[1733499817202,0.015,99291.0,99290.0,0.0027324]
[1733499817633,0.015,99291.0,99290.0,0.0803324]
[1733499817837,0.015,99291.0,99290.0,0.33876449]
[1733499818049,0.015,99291.0,99290.0,0.3429118]
[1733499818251,0.015,99291.0,99290.0,0.1414818]
[1733499818465,0.009,99291.0,99290.0,0.10848678]
[1733499818894,0.006,99291.0,99290.0,0.10748678]
[1733499819101,0.008,99291.0,99290.0,0.10748678]
[1733499819304,0.00935183,99299.0,99290.0,0.10748678]
[1733499819807,0.0009068,99300.0,99291.0,0.23233645]
[1733499820030,0.0009068,99300.0,99291.0,0.03090945]
[1733499820289,0.0009068,99300.0,99292.0,0.00516621]
[1733499820532,0.00935675,99299.0,99292.0,0.00516621]
[1733499820779,0.21076975,99298.0,99290.0,0.0027324]
[1733499821020,0.00935675,99297.0,99293.0,0.00516444]
[1733499821239,0.00935675,99297.0,99290.0,0.0017324]
[1733499821240,0.00935675,99296.0,99290.0,0.0017324]
[1733499821490,0.21077675,99295.0,99290.0,0.0017324]
[1733499821737,0.201424,99293.0,99290.0,0.0017324]
[1733499821980,0.00935675,99292.0,99290.0,0.0017324]
[1733499822191,0.00935675,99294.0,99290.0,0.0017324]
[1733499822437,0.41220475,99293.0,99290.0,0.0017324]
[1733499822666,0.00935675,99292.0,99290.0,0.0027324]
[1733499822925,0.20747275,99291.0,99290.0,0.0027324]
[1733499823417,0.00935675,99291.0,99290.0,0.0027324]
[1733499823645,0.00935675,99292.0,99290.0,0.0027324]
[1733499823871,0.00935675,99292.0,99290.0,0.0017324]
[1733499824133,0.003,99293.0,99290.0,0.0017324]
[1733499824134,0.008,99293.0,99290.0,0.0017324]
[1733499824354,0.00935675,99293.0,99290.0,0.0017324]
[1733499824624,0.01135675,99293.0,99290.0,0.0017324]
[1733499824828,0.003,99291.0,99290.0,0.0017324]
[1733499825018,0.201428,99291.0,99290.0,0.0017324]
[1733499825267,0.30645954,99291.0,99290.0,0.0017324]
[1733499825689,2.09230155,99291.0,99290.0,0.0017324]
[1733499825913,0.451448,99281.0,99247.0,0.077]
[1733499826130,0.55647954,99281.0,99247.0,0.077]
[1733499826363,0.56582255,99281.0,99280.0,0.00190516]
[1733499827072,0.5860915,99281.0,99280.0,0.00190516]
[1733499827302,0.7360915,99281.0,99280.0,0.00190516]
[1733499827521,0.7360915,99281.0,99232.0,0.09021751]
[1733499827522,0.25,99254.0,99226.0,0.16771751]
[1733499827794,0.25,99254.0,99218.0,0.0466]
[1733499827795,0.201547,99232.0,99230.0,6e-07]
[1733499828008,0.201547,99232.0,99231.0,0.00443983]
[1733499828286,0.15,99231.0,99230.0,2e-07]
[1733499828542,0.15,99231.0,99200.0,0.0017338]
[1733499828543,0.20161,99201.0,99190.0,0.0017324]
[1733499828847,0.201627,99193.0,99190.0,0.0017324]
[1733499829091,0.201631,99191.0,99190.0,0.0017324]
[1733499829355,0.30666254,99191.0,99190.0,0.00230647]
[1733499829612,0.30666254,99191.0,99148.0,0.09021751]
[1733499829613,0.201702,99156.0,99155.0,0.05916327]
[1733499830186,0.201702,99156.0,99154.0,0.045]
[1733499830187,0.201708,99154.0,99150.0,8e-07]
[1733499830395,0.201708,99154.0,99130.0,0.0017348]
[1733499830396,0.201746,99135.0,99130.0,0.0017348]
[1733499830619,0.01368885,99136.0,99107.0,0.05115205]
[1733499830843,0.05,99157.0,99107.0,0.05115205]
[1733499830844,0.01368885,99154.0,99121.0,0.03631115]
[1733499831053,0.25,99165.0,99126.0,0.01967374]
[1733499831054,0.0098787,99147.0,99126.0,0.01967374]
[1733499831301,0.0098787,99147.0,99137.0,0.03631115]
[1733499831522,0.05,99195.0,99130.0,0.17588264]
[1733499831523,0.01071495,99166.0,99147.0,0.03631115]
[1733499831726,0.01071495,99166.0,99124.0,0.201765]
[1733499831727,0.00057403,99156.0,99155.0,0.03631115]
[1733499831967,0.0099001,99181.0,99174.0,0.03631115]
[1733499832164,0.01368885,99204.0,99175.0,0.10603964]
[1733499832380,0.01368885,99217.0,99181.0,0.023]
[1733499832618,0.0099415,99216.0,99197.0,0.023]
[1733499832850,0.0099415,99216.0,99204.0,0.023]
[1733499832851,0.01368885,99215.0,99204.0,0.023]
[1733499833312,0.01368885,99215.0,99185.0,0.11791115]
[1733499833313,0.01368885,99215.0,99196.0,0.02011918]
[1733499833531,0.01368885,99211.0,99196.0,0.02011918]
[1733499833741,0.01368885,99211.0,99181.0,0.0474]
[1733499833742,0.01368885,99201.0,99181.0,0.0474]
[1733499834012,0.17588264,99200.0,99181.0,0.0474]
[1733499834228,0.01368885,99201.0,99186.0,0.02028848]
[1733499834444,0.01368885,99201.0,99166.0,0.0759]
[1733499834445,0.01368885,99190.0,99166.0,0.0759]
[1733499834649,0.01368885,99197.0,99167.0,0.14235091]
[1733499834860,0.01368885,99197.0,99196.0,0.001]
[1733499835074,0.0099636,99198.0,99169.0,0.03631115]
[1733499835309,0.01064216,99210.0,99181.0,0.00017293]
[1733499835310,0.006,99201.0,99181.0,0.00017293]
[1733499835523,0.006,99201.0,99187.0,0.03631115]
[1733499835735,0.006,99201.0,99181.0,0.00017293]
[1733499835736,0.17588264,99200.0,99181.0,0.00017293]
[1733499835956,0.25,99214.0,99181.0,0.00017293]
[1733499835957,0.004,99197.0,99181.0,0.00017293]
[1733499836737,0.004,99197.0,99182.0,0.10503154]
[1733499836993,0.004,99197.0,99182.0,0.02400812]
[1733499837229,0.004,99197.0,99181.0,0.00017293]
[1733499837482,0.01368885,99206.0,99181.0,0.00017293]
[1733499837735,0.01067271,99207.0,99181.0,0.00017293]